[Event "Lozovatsky Memorial-B 2020"]
[Site "Chelyabinsk"]
[Date "2020.01.15"]
[Round "1.9"]
[White "Scherbakov, Mikhail"]
[Black "Tsvetkov, Pavel"]
[Result "0-1"]
[ECO "C77"]
[WhiteElo "2232"]
[BlackElo "2190"]
[Annotator "ChessBase"]
[PlyCount "78"]
[EventDate "2020.01.15"]
[EventType "tourn"]
[EventCountry "RUS"]
[SourceTitle "playchess.com"]
[Source "ChessBase"]
[SourceQuality "1"]
[TimeControl "5400+30"]

1. e4 {[%emt 0:00:00]} e5 {[%emt 0:00:00]} 2. Nf3 {[%emt 0:00:00]} Nc6 {[%emt 0:00:00]} 3. Bb5 {[%emt 0:00:03]} a6 {[%emt 0:00:21]} 4. Ba4 {[%emt 0:00:26]} Nf6 {[%emt 0:00:10]} 5. d3 {[%emt 0:00:33]} d6 {[%emt 0:00:15]} 6. c3 {[%emt 0:00:19]} g6 {[%emt 0:00:06]} 7. O-O {[%emt 0:00:26]} Bg7 {[%emt 0:00:06]} 8. Re1 {[%emt 0:00:32]} O-O {[%emt 0:00:07]} 9. h3 {[%emt 0:00:20]} b5 {[%emt 0:02:09]} 10. Bc2 {[%emt 0:00:33]} Bb7 {[%emt 0:00:07]} 11. Be3 {[%emt 0:00:44]} d5 {[%emt 0:09:50]} 12. Nbd2 {[%emt 0:02:16]} Re8 {[%emt 0:04:58]} 13. Qb1 {[%emt 0:04:56]} Qd7 {[%emt 0:22:04]} 14. Nb3 {[%emt 0:02:47]} Qe7 {[%emt 0:18:38]} 15. Rc1 {[%emt 0:06:22]} Rad8 {[%emt 0:07:37]} 16. Nc5 {[%emt 0:00:56]} d4 {[%emt 0:08:13]} 17. Nxb7 {[%emt 0:01:14]} dxe3 {[%emt 0:00:05]} 18. Nxd8 {[%emt 0:00:31]} exf2+ {[%emt 0:00:05]} 19. Kxf2 {[%emt 0:00:37]} Rxd8 {[%emt 0:04:41]} 20. b4 {[%emt 0:03:47]} Nh5 {[%emt 0:02:22]} 21. Bb3 {[%emt 0:02:01]} Rd6 {[%emt 0:03:49]} 22. g4 {[%emt 0:04:30]} Nf4 {[%emt 0:00:28]} 23. Rd1 {[%emt 0:06:35]} Nxh3+ {[%emt 0:01:16]} 24. Kg3 {[%emt 0:00:08]} Nf4 {[%emt 0:00:12]} 25. Qc2 {[%emt 0:03:20]} h5 {[%emt 0:00:48]} 26. Qh2 {[%emt 0:07:40]} hxg4 {[%emt 0:01:46]} 27. Kxg4 {[%emt 0:03:14]} Qd7+ {[%emt 0:08:55]} 28. Kg3 {[%emt 0:00:11]} Nh5+ {[%emt 0:01:41]} 29. Kf2 {[%emt 0:02:40]} Rf6 {[%emt 0:01:17]} 30. Qh1 {[%emt 0:02:56]} Rf4 {[%emt 0:02:11]} 31. Rd2 {[%emt 0:01:28]} Bh6 {[%emt 0:00:18]} 32. Rg1 {[%emt 0:00:13]} Kf8 {[%emt 0:00:18]} 33. Rdd1 {[%emt 0:02:39]} Qe7 {[%emt 0:00:41]} 34. Rg3 {[%emt 0:01:18]} Qf6 {[%emt 0:00:40]} 35. Rh3 {[%emt 0:00:11]} Rg4 {[%emt 0:00:20]} 36. Rxh5 {[%emt 0:03:03]} gxh5 {[%emt 0:00:04]} 37. Qxh5 {[%emt 0:00:11]} Qf4 {[%emt 0:00:25]} 38. Re1 {[%emt 0:00:35]} Qg3+ {[%emt 0:00:09]} 39. Ke2 {[%emt 0:00:29]} Qg2+ {[%emt 0:00:01] Kf1} 0-1

[Event "Lozovatsky Memorial-B 2020"]
[Site "Chelyabinsk"]
[Date "2020.01.16"]
[Round "2.7"]
[White "Tsvetkov, Pavel"]
[Black "Ansat, Aldiyar"]
[Result "1-0"]
[ECO "B53"]
[WhiteElo "2190"]
[BlackElo "2263"]
[Annotator "ChessBase"]
[PlyCount "63"]
[EventDate "2020.01.15"]
[EventType "tourn"]
[EventCountry "RUS"]
[SourceTitle "playchess.com"]
[Source "ChessBase"]
[SourceQuality "1"]
[TimeControl "5400+30"]

1. e4 {[%emt 0:00:00]} c5 {[%emt 0:00:00]} 2. Nf3 {[%emt 0:00:00]} d6 {[%emt 0:00:02]} 3. d4 {[%emt 0:00:00]} cxd4 {[%emt 0:00:06]} 4. Qxd4 {[%emt 0:00:00]} a6 {[%emt 0:00:09]} 5. c4 {[%emt 0:00:24]} Nc6 {[%emt 0:00:36]} 6. Qe3 {[%emt 0:00:10]} g6 {[%emt 0:02:48]} 7. Nc3 {[%emt 0:06:02]} Bg7 {[%emt 0:02:43]} 8. Be2 {[%emt 0:02:45]} Nf6 {[%emt 0:02:27]} 9. O-O {[%emt 0:00:19]} O-O {[%emt 0:05:42]} 10. h3 {[%emt 0:02:14]} Bd7 {[%emt 0:12:06]} 11. Rd1 {[%emt 0:02:57]} Rc8 {[%emt 0:08:02]} 12. Rb1 {[%emt 0:01:54]} Qc7 {[%emt 0:09:00]} 13. b4 {[%emt 0:08:58]} Rfd8 {[%emt 0:13:31]} 14. a3 {[%emt 0:13:08]} Qb8 {[%emt 0:12:49]} 15. Bb2 {[%emt 0:17:45]} Qa7 {[%emt 0:06:13]} 16. c5 {[%emt 0:14:31]} dxc5 {[%emt 0:06:40]} 17. b5 {[%emt 0:05:59]} axb5 {[%emt 0:05:29]} 18. e5 {[%emt 0:00:14]} b4 {[%emt 0:08:15]} 19. Nb5 {[%emt 0:01:59]} Qb6 {[%emt 0:01:59]} 20. exf6 {[%emt 0:00:02]} exf6 {[%emt 0:00:10]} 21. Nd6 {[%emt 0:00:18]} Rc7 {[%emt 0:00:51]} 22. Bc4 {[%emt 0:01:43]} Rf8 {[%emt 0:00:33]} 23. axb4 {[%emt 0:01:51]} Nxb4 {[%emt 0:00:22]} 24. Nxf7 {[%emt 0:00:23]} Bb5 {[%emt 0:00:47]} 25. Bxb5 {[%emt 0:04:29]} Qxb5 {[%emt 0:00:05]} 26. Nd6 {[%emt 0:00:02]} Qc6 {[%emt 0:00:54]} 27. Rbc1 {[%emt 0:02:40]} Kh8 {[%emt 0:00:31]} 28. h4 {[%emt 0:03:00]} h5 {[%emt 0:00:35]} 29. Qb3 {[%emt 0:02:55]} Rd7 {[%emt 0:00:29]} 30. Qe6 {[%emt 0:02:15]} b6 {[%emt 0:00:32]} 31. Bc3 {[%emt 0:01:51]} Na6 {[%emt 0:00:21]} 32. Nf7+ {[%emt 0:00:02]} 1-0

[Event "Lozovatsky Memorial-B 2020"]
[Site "Chelyabinsk"]
[Date "2020.01.16"]
[Round "2.10"]
[White "Nugumanov, Bakhtiyar"]
[Black "Somkin, Kirill"]
[Result "1-0"]
[ECO "C65"]
[WhiteElo "2389"]
[BlackElo "2121"]
[Annotator "ChessBase"]
[PlyCount "60"]
[EventDate "2020.01.15"]
[EventType "tourn"]
[EventCountry "RUS"]
[SourceTitle "playchess.com"]
[Source "ChessBase"]
[SourceQuality "1"]
[TimeControl "5400+30"]

1. e4 {[%emt 0:00:00]} e5 {[%emt 0:00:00]} 2. Nf3 {[%emt 0:00:27]} Nc6 {[%emt 0:00:00]} 3. Bb5 {[%emt 0:00:38]} Bc5 {[%emt 0:00:16]} 4. O-O {[%emt 0:01:39]} Nf6 {[%emt 0:00:59]} 5. d3 {[%emt 0:01:00]} d6 {[%emt 0:00:58]} 6. c3 {[%emt 0:00:54]} O-O {[%emt 0:01:38]} 7. h3 {[%emt 0:02:01]} Ne7 {[%emt 0:04:04]} 8. Ba4 {[%emt 0:03:52]} Bb6 {[%emt 0:04:16]} 9. Re1 {[%emt 0:03:47]} Ng6 {[%emt 0:02:42]} 10. Nbd2 {[%emt 0:00:51]} c6 {[%emt 0:01:25]} 11. Nf1 {[%emt 0:00:41]} Bc7 {[%emt 0:03:20]} 12. Ng3 {[%emt 0:03:03]} d5 {[%emt 0:02:36]} 13. Bb3 {[%emt 0:05:48]} h6 {[%emt 0:02:43]} 14. d4 {[%emt 0:07:22]} Nxe4 {[%emt 0:22:02]} 15. Nxe4 {[%emt 0:02:36]} dxe4 {[%emt 0:00:18]} 16. Rxe4 {[%emt 0:01:14]} Bf5 {[%emt 0:05:59]} 17. Re1 {[%emt 0:00:36]} e4 {[%emt 0:05:04]} 18. Nd2 {[%emt 0:01:56]} Qh4 {[%emt 0:01:36]} 19. Nf1 {[%emt 0:03:11]} Rae8 {[%emt 0:02:04]} 20. Re3 {[%emt 0:02:42]} Kh8 {[%emt 0:03:55]} 21. Bc2 {[%emt 0:06:34]} Bf4 {[%emt 0:06:33]} 22. Re1 {[%emt 0:03:25]} Re6 {[%emt 0:04:34]} 23. Bxf4 {[%emt 0:09:39]} Nxf4 {[%emt 0:00:42]} 24. Ng3 {[%emt 0:01:13]} e3 {[%emt 0:05:47]} 25. Bxf5 {[%emt 0:05:13]} exf2+ {[%emt 0:00:05]} 26. Kxf2 {[%emt 0:00:21]} Rxe1 {[%emt 0:03:29]} 27. Qxe1 {[%emt 0:00:28]} g6 {[%emt 0:01:26]} 28. Bc2 {[%emt 0:01:32]} Nh5 {[%emt 0:03:56]} 29. Qe5+ {[%emt 0:01:52]} f6 {[%emt 0:02:00]} 30. Qe3 {[%emt 0:00:15]} Kh7 {[%emt 0:05:19]} 1-0

[Event "Lozovatsky Memorial-B 2020"]
[Site "Chelyabinsk"]
[Date "2020.01.18"]
[Round "4.6"]
[White "Frolov, Artiom"]
[Black "Tsvetkov, Pavel"]
[Result "1/2-1/2"]
[ECO "A38"]
[WhiteElo "2336"]
[BlackElo "2190"]
[Annotator "ChessBase"]
[PlyCount "102"]
[EventDate "2020.01.15"]
[EventType "tourn"]
[EventCountry "RUS"]
[SourceTitle "playchess.com"]
[Source "ChessBase"]
[SourceQuality "1"]
[TimeControl "5400+30"]

1. Nf3 {[%emt 0:06:53]} Nf6 {[%emt 0:00:00]} 2. c4 {[%emt 0:00:51]} c5 {[%emt 0:00:00]} 3. Nc3 {[%emt 0:03:53]} Nc6 {[%emt 0:00:07]} 4. g3 {[%emt 0:01:43]} g6 {[%emt 0:00:04]} 5. Bg2 {[%emt 0:00:52]} Bg7 {[%emt 0:00:03]} 6. d4 {[%emt 0:02:55]} cxd4 {[%emt 0:00:12]} 7. Nxd4 {[%emt 0:00:15]} O-O {[%emt 0:00:04]} 8. O-O {[%emt 0:00:51]} d6 {[%emt 0:01:18]} 9. Nxc6 {[%emt 0:15:01]} bxc6 {[%emt 0:00:01]} 10. Bxc6 {[%emt 0:00:10]} Rb8 {[%emt 0:00:02]} 11. b3 {[%emt 0:01:33]} Bh3 {[%emt 0:01:22]} 12. Re1 {[%emt 0:16:40]} Ng4 {[%emt 0:05:44]} 13. Bb2 {[%emt 0:27:15]} Qb6 {[%emt 0:00:08]} 14. e3 {[%emt 0:00:42]} Bxc3 {[%emt 0:01:42]} 15. Bxc3 {[%emt 0:03:30]} Qxc6 {[%emt 0:00:03]} 16. e4 {[%emt 0:00:38]} Ne5 {[%emt 0:01:08]} 17. Re3 {[%emt 0:10:46]} f5 {[%emt 0:01:25]} 18. Qd5+ {[%emt 0:00:40]} Rf7 {[%emt 0:05:39]} 19. Bxe5 {[%emt 0:00:29]} Qxd5 {[%emt 0:00:05]} 20. exd5 {[%emt 0:00:11]} dxe5 {[%emt 0:00:05]} 21. Rxe5 {[%emt 0:00:16]} f4 {[%emt 0:01:59]} 22. Rae1 {[%emt 0:01:21]} fxg3 {[%emt 0:00:55]} 23. hxg3 {[%emt 0:00:13]} Kf8 {[%emt 0:01:17]} 24. f4 {[%emt 0:03:11]} h5 {[%emt 0:01:49]} 25. Kf2 {[%emt 0:00:18]} a5 {[%emt 0:03:47]} 26. d6 {[%emt 0:01:14]} a4 {[%emt 0:05:12]} 27. Rxe7 {[%emt 0:00:30]} axb3 {[%emt 0:01:05]} 28. axb3 {[%emt 0:00:12]} Rxb3 {[%emt 0:02:03]} 29. Rxf7+ {[%emt 0:00:18]} Kxf7 {[%emt 0:00:03]} 30. Re7+ {[%emt 0:00:15]} Kf6 {[%emt 0:06:04]} 31. c5 {[%emt 0:00:06]} Rb8 {[%emt 0:03:18]} 32. Ke3 {[%emt 0:01:26]} Be6 {[%emt 0:05:54]} 33. Rc7 {[%emt 0:00:47]} Rc8 {[%emt 0:01:31]} 34. d7 {[%emt 0:00:33]} Ra8 {[%emt 0:07:19]} 35. Ra7 {[%emt 0:00:21]} Rf8 {[%emt 0:02:06]} 36. c6 {[%emt 0:00:38]} Rb8 {[%emt 0:03:45]} 37. Kd4 {[%emt 0:00:32]} Rb4+ {[%emt 0:00:41]} 38. Kc5 {[%emt 0:00:17]} Rc4+ {[%emt 0:00:02]} 39. Kd6 {[%emt 0:00:22]} Rd4+ {[%emt 0:00:05]} 40. Kc7 {[%emt 0:00:43]} Ke7 {[%emt 0:00:09]} 41. Ra3 {[%emt 0:00:34]} Bxd7 {[%emt 0:02:10]} 42. cxd7 {[%emt 0:00:12]} Rc4+ {[%emt 0:01:27]} 43. Kb7 {[%emt 0:00:41]} Kxd7 {[%emt 0:00:03]} 44. Re3 {[%emt 0:00:36]} Rb4+ {[%emt 0:00:03]} 45. Ka6 {[%emt 0:00:16]} Kd6 {[%emt 0:01:27]} 46. Re5 {[%emt 0:00:33]} Ra4+ {[%emt 0:01:07]} 47. Kb7 {[%emt 0:00:31]} h4 {[%emt 0:04:09]} 48. gxh4 {[%emt 0:00:16]} Rb4+ {[%emt 0:00:03]} 49. Kc8 {[%emt 0:00:52]} Rc4+ {[%emt 0:00:02]} 50. Kb7 {[%emt 0:00:22]} Rxf4 {[%emt 0:00:08]} 51. Rg5 {[%emt 0:00:09]} Rxh4 {[%emt 0:00:03]} 1/2-1/2

[Event "Lozovatsky Memorial-B 2020"]
[Site "Chelyabinsk"]
[Date "2020.01.18"]
[Round "4.7"]
[White "Tologontegin, Semetey"]
[Black "Sitnikov, Anton"]
[Result "1/2-1/2"]
[ECO "B07"]
[WhiteElo "2355"]
[BlackElo "2406"]
[Annotator "ChessBase"]
[PlyCount "151"]
[EventDate "2020.01.15"]
[EventType "tourn"]
[EventCountry "RUS"]
[SourceTitle "playchess.com"]
[Source "ChessBase"]
[SourceQuality "1"]
[TimeControl "5400+30"]

1. e4 {[%emt 0:00:52]} d6 {[%emt 0:02:18]} 2. d4 {[%emt 0:00:13]} Nf6 {[%emt 0:00:09]} 3. Nc3 {[%emt 0:00:10]} Nbd7 {[%emt 0:00:10]} 4. Nf3 {[%emt 0:00:11]} e5 {[%emt 0:00:08]} 5. Bc4 {[%emt 0:00:08]} Be7 {[%emt 0:02:04]} 6. O-O {[%emt 0:01:08]} c6 {[%emt 0:00:12]} 7. a4 {[%emt 0:00:12]} h6 {[%emt 0:00:38]} 8. Re1 {[%emt 0:00:55]} Qc7 {[%emt 0:00:21]} 9. Ba2 {[%emt 0:01:20]} Nf8 {[%emt 0:01:58]} 10. Qd3 {[%emt 0:32:11]} Ng6 {[%emt 0:20:28]} 11. h3 {[%emt 0:00:34]} O-O {[%emt 0:00:30]} 12. Be3 {[%emt 0:00:44]} Bd7 {[%emt 0:12:20]} 13. a5 {[%emt 0:04:20]} Kh8 {[%emt 0:10:36]} 14. Red1 {[%emt 0:11:19]} b5 {[%emt 0:11:23]} 15. axb6 {[%emt 0:06:38]} axb6 {[%emt 0:00:42]} 16. dxe5 {[%emt 0:03:32]} dxe5 {[%emt 0:00:30]} 17. Bb3 {[%emt 0:00:30]} Rab8 {[%emt 0:18:42]} 18. Ra2 {[%emt 0:06:52]} Rb7 {[%emt 0:01:43]} 19. Rda1 {[%emt 0:00:50]} Bc8 {[%emt 0:07:03]} 20. Ra8 {[%emt 0:03:30]} b5 {[%emt 0:05:14]} 21. R1a7 {[%emt 0:00:52]} Rxa7 {[%emt 0:00:06]} 22. Rxa7 {[%emt 0:00:03]} Bb7 {[%emt 0:01:14]} 23. Nd2 {[%emt 0:05:36]} Kg8 {[%emt 0:01:26]} 24. Ne2 {[%emt 0:01:16]} Rd8 {[%emt 0:00:44]} 25. Qc3 {[%emt 0:00:05]} c5 {[%emt 0:00:52]} 26. Ng3 {[%emt 0:00:27]} Qb8 {[%emt 0:00:43]} 27. Qa5 {[%emt 0:01:23]} c4 {[%emt 0:00:08]} 28. Qxb5 {[%emt 0:01:25]} cxb3 {[%emt 0:00:30]} 29. Rxb7 {[%emt 0:00:06]} bxc2 {[%emt 0:00:20]} 30. Rxb8 {[%emt 0:01:00]} c1=Q+ {[%emt 0:00:07]} 31. Kh2 {[%emt 0:00:52]} Rxb8 {[%emt 0:01:23]} 32. Qxb8+ {[%emt 0:00:04]} Kh7 {[%emt 0:00:04]} 33. Qb7 {[%emt 0:06:01]} Kg8 {[%emt 0:01:07]} 34. Nf3 {[%emt 0:01:07]} Qc2 {[%emt 0:00:28]} 35. Nxe5 {[%emt 0:00:22]} Nxe5 {[%emt 0:00:28]} 36. Qb8+ {[%emt 0:00:04]} Bf8 {[%emt 0:00:09]} 37. Qxe5 {[%emt 0:00:04]} Qc6 {[%emt 0:00:17]} 38. Qd4 {[%emt 0:04:58]} Nd7 {[%emt 0:00:48]} 39. f4 {[%emt 0:01:31]} g6 {[%emt 0:00:20]} 40. e5 {[%emt 0:00:39]} Bc5 {[%emt 0:00:33]} 41. Qc4 {[%emt 0:00:18]} Qb6 {[%emt 0:00:04]} 42. Bxc5 {[%emt 0:00:36]} Nxc5 {[%emt 0:00:02]} 43. b4 {[%emt 0:01:02]} Ne6 {[%emt 0:00:02]} 44. f5 {[%emt 0:02:47]} Nd4 {[%emt 0:00:08]} 45. Qc8+ {[%emt 0:01:20]} Kg7 {[%emt 0:00:45]} 46. f6+ {[%emt 0:00:06]} Kh7 {[%emt 0:00:04]} 47. Qc5 {[%emt 0:00:18]} Qxc5 {[%emt 0:00:46]} 48. bxc5 {[%emt 0:00:04]} Nc6 {[%emt 0:00:03]} 49. e6 {[%emt 0:01:21]} fxe6 {[%emt 0:00:04]} 50. Ne4 {[%emt 0:00:06]} g5 {[%emt 0:00:24]} 51. Nd6 {[%emt 0:00:12]} Kg6 {[%emt 0:02:45]} 52. f7 {[%emt 0:00:09]} Kg7 {[%emt 0:00:02]} 53. Kg3 {[%emt 0:00:29]} Ne5 {[%emt 0:00:11]} 54. h4 {[%emt 0:02:58]} gxh4+ {[%emt 0:00:29]} 55. Kxh4 {[%emt 0:00:09]} Kf8 {[%emt 0:02:00]} 56. Kh5 {[%emt 0:00:56]} Kg7 {[%emt 0:00:06]} 57. g3 {[%emt 0:00:53]} Nc6 {[%emt 0:00:15]} 58. Kg4 {[%emt 0:00:32]} Ne5+ {[%emt 0:00:07]} 59. Kh5 {[%emt 0:00:17]} Nc6 {[%emt 0:00:06]} 60. f8=Q+ {[%emt 0:00:20]} Kxf8 {[%emt 0:00:07]} 61. Kxh6 {[%emt 0:00:04]} Ne5 {[%emt 0:02:04]} 62. Kh7 {[%emt 0:00:05]} Ng4 {[%emt 0:00:56]} 63. c6 {[%emt 0:00:51]} Nf6+ {[%emt 0:00:03]} 64. Kg6 {[%emt 0:00:15]} Nd5 {[%emt 0:00:05]} 65. Kg5 {[%emt 0:00:43]} Ke7 {[%emt 0:00:20]} 66. Nb5 {[%emt 0:00:47]} Kd8 {[%emt 0:00:38]} 67. g4 {[%emt 0:00:44]} e5 {[%emt 0:00:28]} 68. Kh4 {[%emt 0:00:23]} e4 {[%emt 0:00:36]} 69. Kg3 {[%emt 0:00:03]} Ke7 {[%emt 0:00:19]} 70. g5 {[%emt 0:00:57]} Ke6 {[%emt 0:00:47]} 71. c7 {[%emt 0:00:29]} Kd7 {[%emt 0:01:14]} 72. g6 {[%emt 0:00:07]} Ne7 {[%emt 0:00:07]} 73. Kf4 {[%emt 0:01:29]} Nxg6+ {[%emt 0:00:10]} 74. Kxe4 {[%emt 0:00:01]} Nf8 {[%emt 0:00:17]} 75. Kd5 {[%emt 0:00:16]} Ne6 {[%emt 0:00:07]} 76. Ke4 1/2-1/2

[Event "Lozovatsky Memorial-B 2020"]
[Site "Chelyabinsk"]
[Date "2020.01.18"]
[Round "4.8"]
[White "Simantsev, Mikhail"]
[Black "Ansat, Aldiyar"]
[Result "1/2-1/2"]
[ECO "E71"]
[WhiteElo "2370"]
[BlackElo "2263"]
[Annotator "ChessBase"]
[PlyCount "106"]
[EventDate "2020.01.15"]
[EventType "tourn"]
[EventCountry "RUS"]
[SourceTitle "playchess.com"]
[Source "ChessBase"]
[SourceQuality "1"]
[TimeControl "5400+30"]

1. d4 {[%emt 0:07:40]} Nf6 {[%emt 0:00:00]} 2. c4 {[%emt 0:00:05]} g6 {[%emt 0:00:00]} 3. Nc3 {[%emt 0:00:02]} Bg7 {[%emt 0:00:03]} 4. e4 {[%emt 0:00:02]} d6 {[%emt 0:00:08]} 5. h3 {[%emt 0:00:02]} O-O {[%emt 0:00:27]} 6. Nf3 {[%emt 0:00:01]} e5 {[%emt 0:00:24]} 7. d5 {[%emt 0:00:02]} a5 {[%emt 0:00:15]} 8. g4 {[%emt 0:00:14]} Na6 {[%emt 0:00:40]} 9. Be3 {[%emt 0:00:02]} Nd7 {[%emt 0:00:11]} 10. a3 {[%emt 0:00:08]} Nac5 {[%emt 0:00:09]} 11. Rg1 {[%emt 0:02:02]} a4 {[%emt 0:00:16]} 12. Nd2 {[%emt 0:00:15]} h6 {[%emt 0:00:26]} 13. Qc2 {[%emt 0:08:03]} Kh7 {[%emt 0:00:09]} 14. O-O-O {[%emt 0:01:06]} Bf6 {[%emt 0:25:31]} 15. Nf3 {[%emt 0:09:10]} Nb3+ {[%emt 0:02:38]} 16. Kb1 {[%emt 0:00:02]} Ndc5 {[%emt 0:00:18]} 17. Be2 {[%emt 0:04:41]} Bg7 {[%emt 0:14:23]} 18. h4 {[%emt 0:10:24]} Qe7 {[%emt 0:18:58]} 19. Ka2 {[%emt 0:28:19]} Bd7 {[%emt 0:07:24]} 20. Rg3 {[%emt 0:05:18]} Rg8 {[%emt 0:13:43]} 21. Qb1 {[%emt 0:07:43]} Raf8 {[%emt 0:05:12]} 22. Rdg1 {[%emt 0:07:23]} f5 {[%emt 0:02:04]} 23. gxf5 {[%emt 0:03:12]} gxf5 {[%emt 0:00:05]} 24. exf5 {[%emt 0:02:08]} Bxf5 {[%emt 0:00:26]} 25. Qd1 {[%emt 0:00:18]} Ne4 {[%emt 0:04:33]} 26. Nxe4 {[%emt 0:01:16]} Bxe4 {[%emt 0:00:01]} 27. Bd3 {[%emt 0:00:00]} Bxd3 {[%emt 0:01:26]} 28. Qxd3+ {[%emt 0:00:01]} e4 {[%emt 0:01:01]} 29. Qc2 {[%emt 0:00:02]} Bf6 {[%emt 0:02:36]} 30. Rg4 {[%emt 0:02:04]} Re8 {[%emt 0:00:46]} 31. h5 {[%emt 0:01:16]} Rxg4 {[%emt 0:00:16]} 32. Rxg4 {[%emt 0:00:01]} Bg7 {[%emt 0:00:50]} 33. Rg6 {[%emt 0:00:57]} Rf8 {[%emt 0:00:34]} 34. Re6 {[%emt 0:01:38]} Qf7 {[%emt 0:00:25]} 35. Nh4 {[%emt 0:00:57]} Qxh5 {[%emt 0:00:30]} 36. Qxe4+ {[%emt 0:00:01]} Kg8 {[%emt 0:00:03]} 37. f3 {[%emt 0:00:54]} Bf6 {[%emt 0:01:02]} 38. Nf5 {[%emt 0:00:43]} Kh8 {[%emt 0:00:34]} 39. Nd4 {[%emt 0:00:44]} Nc5 {[%emt 0:00:23]} 40. Qc2 {[%emt 0:00:30]} Nxe6 {[%emt 0:00:04]} 41. Nxe6 {[%emt 0:00:13]} Rg8 {[%emt 0:00:24]} 42. Qxa4 {[%emt 0:00:49]} Qxf3 {[%emt 0:00:25]} 43. Bxh6 {[%emt 0:00:30]} Qe2 {[%emt 0:01:00]} 44. Bc1 {[%emt 0:00:20]} Qf1 {[%emt 0:00:42]} 45. Qc2 {[%emt 0:00:39]} Rg2 {[%emt 0:00:20]} 46. Qa4 {[%emt 0:00:31]} Qxc1 {[%emt 0:00:26]} 47. Qe8+ {[%emt 0:00:09]} Kh7 {[%emt 0:00:30]} 48. Qh5+ {[%emt 0:00:37]} Kg8 {[%emt 0:00:44]} 49. Qe8+ {[%emt 0:00:03]} Kh7 {[%emt 0:00:02]} 50. Qh5+ {[%emt 0:00:04]} Qh6 {[%emt 0:00:25]} 51. Nf8+ {[%emt 0:00:04]} Kg7 {[%emt 0:00:46]} 52. Ne6+ {[%emt 0:00:03]} Kh7 {[%emt 0:00:44]} 53. Nf8+ {[%emt 0:00:02]} Kg7 {[%emt 0:00:28]} 1/2-1/2

[Event "Lozovatsky Memorial-B 2020"]
[Site "Chelyabinsk"]
[Date "2020.01.18"]
[Round "4.9"]
[White "Nugumanov, Bakhtiyar"]
[Black "Scherbakov, Mikhail"]
[Result "1-0"]
[ECO "B34"]
[WhiteElo "2389"]
[BlackElo "2232"]
[Annotator "ChessBase"]
[PlyCount "139"]
[EventDate "2020.01.15"]
[EventType "tourn"]
[EventCountry "RUS"]
[SourceTitle "playchess.com"]
[Source "ChessBase"]
[SourceQuality "1"]
[TimeControl "5400+30"]

1. e4 {[%emt 0:00:00]} c5 {[%emt 0:10:10]} 2. Nf3 {[%emt 0:00:40]} g6 {[%emt 0:00:21]} 3. d4 {[%emt 0:03:02]} cxd4 {[%emt 0:00:19]} 4. Nxd4 {[%emt 0:00:15]} Nc6 {[%emt 0:00:20]} 5. Nc3 {[%emt 0:00:13]} Bg7 {[%emt 0:00:22]} 6. Be3 {[%emt 0:00:20]} Nf6 {[%emt 0:02:05]} 7. Nxc6 {[%emt 0:02:31]} bxc6 {[%emt 0:00:33]} 8. e5 {[%emt 0:00:07]} Ng8 {[%emt 0:00:06]} 9. Bd4 {[%emt 0:00:30]} Qc7 {[%emt 0:00:18]} 10. e6 {[%emt 0:00:49]} Nf6 {[%emt 0:01:06]} 11. exd7+ {[%emt 0:01:32]} Bxd7 {[%emt 0:00:57]} 12. Bc4 {[%emt 0:00:37]} O-O {[%emt 0:01:53]} 13. Qe2 {[%emt 0:01:44]} Nd5 {[%emt 0:07:02]} 14. Bxg7 {[%emt 0:04:23]} Kxg7 {[%emt 0:00:09]} 15. Bxd5 {[%emt 0:13:57]} cxd5 {[%emt 0:00:11]} 16. Nxd5 {[%emt 0:00:49]} Qa5+ {[%emt 0:00:13]} 17. Qd2 {[%emt 0:01:51]} Qxd2+ {[%emt 0:02:20]} 18. Kxd2 {[%emt 0:00:01]} Bc6 {[%emt 0:00:45]} 19. Ne3 {[%emt 0:00:37]} f5 {[%emt 0:03:51]} 20. f3 {[%emt 0:01:50]} Rfd8+ {[%emt 0:02:53]} 21. Kc1 {[%emt 0:08:07]} f4 {[%emt 0:06:16]} 22. Ng4 {[%emt 0:00:47]} Bd7 {[%emt 0:02:40]} 23. Ne5 {[%emt 0:05:43]} Bf5 {[%emt 0:00:12]} 24. Re1 {[%emt 0:03:28]} Rd5 {[%emt 0:06:54]} 25. b3 {[%emt 0:02:29]} Kf6 {[%emt 0:02:30]} 26. Nc4 {[%emt 0:01:24]} g5 {[%emt 0:15:11]} 27. Kb2 {[%emt 0:01:20]} h5 {[%emt 0:01:12]} 28. Re2 {[%emt 0:01:27]} e5 {[%emt 0:01:16]} 29. Rae1 {[%emt 0:01:44]} Re8 {[%emt 0:00:09]} 30. Rd2 {[%emt 0:06:47]} Red8 {[%emt 0:01:01]} 31. Red1 {[%emt 0:04:29]} Ke6 {[%emt 0:02:23]} 32. Rxd5 {[%emt 0:02:14]} Rxd5 {[%emt 0:00:08]} 33. Re1 {[%emt 0:00:37]} g4 {[%emt 0:00:51]} 34. Kc3 {[%emt 0:02:14]} h4 {[%emt 0:00:40]} 35. fxg4 {[%emt 0:03:55]} Bxg4 {[%emt 0:00:21]} 36. Rf1 {[%emt 0:04:12]} Be2 {[%emt 0:04:03]} 37. Rf2 {[%emt 0:00:14]} Bxc4 {[%emt 0:00:12]} 38. bxc4 {[%emt 0:04:10]} Rd8 {[%emt 0:00:09]} 39. c5 {[%emt 0:02:47]} h3 {[%emt 0:00:38]} 40. g3 {[%emt 0:05:03]} fxg3 {[%emt 0:00:39]} 41. hxg3 {[%emt 0:00:02]} Rh8 {[%emt 0:00:13]} 42. Rh2 {[%emt 0:00:42]} Kd5 {[%emt 0:01:38]} 43. Kd3 {[%emt 0:00:22]} e4+ {[%emt 0:01:27]} 44. Ke3 {[%emt 0:00:07]} Ke5 {[%emt 0:00:03]} 45. g4 {[%emt 0:01:00]} a5 {[%emt 0:01:02]} 46. c6 {[%emt 0:02:03]} Rh7 {[%emt 0:01:21]} 47. c4 {[%emt 0:01:44]} a4 {[%emt 0:01:29]} 48. a3 {[%emt 0:01:19]} Rh6 {[%emt 0:02:35]} 49. c7 {[%emt 0:00:58]} Rc6 {[%emt 0:00:03]} 50. Rxh3 {[%emt 0:00:22]} Rxc4 {[%emt 0:02:37]} 51. Rh5+ {[%emt 0:00:14]} Kd6 {[%emt 0:00:08]} 52. Rh7 {[%emt 0:00:28]} Ke5 {[%emt 0:01:28]} 53. Re7+ {[%emt 0:00:46]} Kf6 {[%emt 0:00:06]} 54. Rxe4 {[%emt 0:01:56]} Rxc7 {[%emt 0:00:04]} 55. Rxa4 {[%emt 0:01:23]} Kg5 {[%emt 0:00:08]} 56. Kd3 {[%emt 0:00:16]} Rc1 {[%emt 0:00:59]} 57. Rc4 {[%emt 0:01:48]} Ra1 {[%emt 0:01:14]} 58. a4 {[%emt 0:00:01]} Ra3+ {[%emt 0:00:05]} 59. Kc2 {[%emt 0:00:12]} Kf6 {[%emt 0:00:19]} 60. Kb2 {[%emt 0:00:02]} Rd3 {[%emt 0:01:17]} 61. a5 {[%emt 0:00:15]} Rd6 {[%emt 0:00:28]} 62. Ra4 {[%emt 0:00:25]} Ra6 {[%emt 0:00:18]} 63. Kb3 {[%emt 0:00:43]} Ke6 {[%emt 0:00:31]} 64. Kc4 {[%emt 0:00:16]} Kd6 {[%emt 0:00:04]} 65. Kb5 {[%emt 0:00:32]} Ra8 {[%emt 0:00:14]} 66. a6 {[%emt 0:00:23]} Kc7 {[%emt 0:01:11]} 67. Rc4+ {[%emt 0:00:20]} Kd7 {[%emt 0:00:29]} 68. g5 {[%emt 0:00:46]} Rb8+ {[%emt 0:01:02]} 69. Ka5 {[%emt 0:00:18]} Ra8 {[%emt 0:00:12]} 70. g6 {[%emt 0:00:15]} 1-0